[Event "Titled Tuesday Blitz January 04 2022"]
[White "Costachi, Mihnea"]
[Black "Ezat, Mohamed"]
[WhiteFideId "1217518"]
[BlackFideId "10600906"]
[WhiteElo "2464"]
[BlackElo "2386"]
[Result "1-0"]
[Round "07"]
[TimeControl "180+1"]
[Date "2022.01.04"]
[WhiteClock "0:01:03"]
[BlackClock "0:00:30"]

1. e4 {[%clk 0:03:00]}  c6 {[%clk 0:02:59]} 2. g3 {[%clk 0:02:55]}  d5 {[%clk 0:02:59]} 3. exd5 {[%clk 0:02:56]}  cxd5 {[%clk 0:02:59]} 4. Bg2 {[%clk 0:02:57]}  Nc6 {[%clk 0:02:59]} 5. Nf3 {[%clk 0:02:56]}  Bg4 {[%clk 0:02:58]} 6. h3 {[%clk 0:02:56]}  Bxf3 {[%clk 0:02:58]} 7. Qxf3 {[%clk 0:02:55]}  e6 {[%clk 0:02:58]} 8. Qb3 {[%clk 0:02:55]}  Qb6 {[%clk 0:02:55]} 9. Qxb6 {[%clk 0:02:52]}  axb6 {[%clk 0:02:55]} 10. c3 {[%clk 0:02:53]}  Na5 {[%clk 0:02:44]} 11. Na3 {[%clk 0:02:42]}  Bxa3 {[%clk 0:02:41]} 12. bxa3 {[%clk 0:02:43]}  Nf6 {[%clk 0:02:27]} 13. Rb1 {[%clk 0:02:44]}  Nd7 {[%clk 0:02:26]} 14. Bf1 {[%clk 0:02:41]}  O-O {[%clk 0:02:15]} 15. d3 {[%clk 0:02:21]}  Rfc8 {[%clk 0:02:13]} 16. Kd2 {[%clk 0:02:22]}  Rc6 {[%clk 0:01:49]} 17. Rb4 {[%clk 0:02:18]}  Rac8 {[%clk 0:01:47]} 18. Bb2 {[%clk 0:02:18]}  R6c7 {[%clk 0:01:34]} 19. Be2 {[%clk 0:02:16]}  Nc6 {[%clk 0:01:34]} 20. Rb5 {[%clk 0:02:16]}  Na7 {[%clk 0:01:31]} 21. Rb4 {[%clk 0:02:17]}  b5 {[%clk 0:01:30]} 22. d4 {[%clk 0:02:08]}  Nb6 {[%clk 0:01:30]} 23. Rb1 {[%clk 0:01:49]}  Nc4+ {[%clk 0:01:10]} 24. Bxc4 {[%clk 0:01:49]}  Rxc4 {[%clk 0:01:11]} 25. Ba1 {[%clk 0:01:43]}  Kf8 {[%clk 0:01:10]} 26. a4 {[%clk 0:01:41]}  bxa4 {[%clk 0:01:07]} 27. Rxc4 {[%clk 0:01:36]}  Rxc4 {[%clk 0:01:06]} 28. Rxb7 {[%clk 0:01:37]}  Nc6 {[%clk 0:01:06]} 29. Bb2 {[%clk 0:01:33]}  a3 {[%clk 0:00:48]} 30. Bxa3+ {[%clk 0:01:33]}  Ke8 {[%clk 0:00:49]} 31. Bc5 {[%clk 0:01:18]}  e5 {[%clk 0:00:44]} 32. Rc7 {[%clk 0:01:08]}  Nd8 {[%clk 0:00:34]} 33. Re7+ {[%clk 0:01:04]}  Kf8 {[%clk 0:00:33]} 34. Rxe5+ {[%clk 0:01:04]}  Kg8 {[%clk 0:00:30]} 35. Re8# {[%clk 0:01:03]} 1-0


[Site "https://www.chess.com"]

[Event "Titled Tuesday Blitz January 04 2022"]
[White "Dev, Shah"]
[Black "Grandelius, Nils"]
[WhiteFideId "35019058"]
[BlackFideId "1710400"]
[WhiteElo "2098"]
[BlackElo "2617"]
[Result "0-1"]
[Round "07"]
[TimeControl "180+1"]
[Date "2022.01.04"]
[WhiteClock "0:01:04"]
[BlackClock "0:00:31"]

1. d4 {[%clk 0:03:00]}  d5 {[%clk 0:02:59]} 2. c4 {[%clk 0:03:00]}  e6 {[%clk 0:03:00]} 3. Nf3 {[%clk 0:03:00]}  a6 {[%clk 0:03:00]} 4. Bg5 {[%clk 0:02:59]}  Be7 {[%clk 0:03:00]} 5. Bxe7 {[%clk 0:03:00]}  Nxe7 {[%clk 0:03:01]} 6. Nbd2 {[%clk 0:02:55]}  O-O {[%clk 0:02:57]} 7. e3 {[%clk 0:02:55]}  Nd7 {[%clk 0:02:54]} 8. cxd5 {[%clk 0:02:46]}  exd5 {[%clk 0:02:55]} 9. Bd3 {[%clk 0:02:46]}  Nf6 {[%clk 0:02:53]} 10. Ne5 {[%clk 0:02:45]}  Bf5 {[%clk 0:02:52]} 11. O-O {[%clk 0:02:38]}  Bxd3 {[%clk 0:02:48]} 12. Nxd3 {[%clk 0:02:39]}  Nf5 {[%clk 0:02:48]} 13. Rc1 {[%clk 0:02:38]}  c6 {[%clk 0:02:46]} 14. Qb3 {[%clk 0:02:37]}  Nd6 {[%clk 0:02:44]} 15. Nc5 {[%clk 0:02:36]}  Qe7 {[%clk 0:02:34]} 16. a4 {[%clk 0:02:33]}  h5 {[%clk 0:02:33]} 17. a5 {[%clk 0:02:31]}  g6 {[%clk 0:02:26]} 18. Nf3 {[%clk 0:02:30]}  Nfe4 {[%clk 0:02:20]} 19. Ne5 {[%clk 0:02:21]}  Nd2 {[%clk 0:02:19]} 20. Qb6 {[%clk 0:02:18]}  Nxf1 {[%clk 0:02:17]} 21. Rxf1 {[%clk 0:02:19]}  Kg7 {[%clk 0:02:14]} 22. Ned7 {[%clk 0:02:17]}  Rfd8 {[%clk 0:02:10]} 23. Ne5 {[%clk 0:02:16]}  f6 {[%clk 0:02:06]} 24. Ned3 {[%clk 0:02:15]}  Nc4 {[%clk 0:02:03]} 25. Qb4 {[%clk 0:02:15]}  Rab8 {[%clk 0:02:04]} 26. Nf4 {[%clk 0:02:16]}  Re8 {[%clk 0:01:57]} 27. b3 {[%clk 0:02:08]}  Nd6 {[%clk 0:01:47]} 28. Nfe6+ {[%clk 0:02:04]}  Kh7 {[%clk 0:01:44]} 29. f3 {[%clk 0:02:02]}  Qf7 {[%clk 0:01:42]} 30. Qb6 {[%clk 0:01:54]}  Rbc8 {[%clk 0:01:29]} 31. Nf4 {[%clk 0:01:44]}  Rxe3 {[%clk 0:01:28]} 32. Qa7 {[%clk 0:01:42]}  Rce8 {[%clk 0:01:24]} 33. Nfd3 {[%clk 0:01:41]}  R8e7 {[%clk 0:01:18]} 34. Qb8 {[%clk 0:01:41]}  Nf5 {[%clk 0:01:15]} 35. Qf4 {[%clk 0:01:41]}  Qg7 {[%clk 0:01:12]} 36. g4 {[%clk 0:01:37]}  Nh4 {[%clk 0:01:06]} 37. Qg3 {[%clk 0:01:30]}  g5 {[%clk 0:01:06]} 38. gxh5 {[%clk 0:01:30]}  Qh6 {[%clk 0:00:53]} 39. Qg4 {[%clk 0:01:09]}  f5 {[%clk 0:00:53]} 40. Qg3 {[%clk 0:01:09]}  Qxh5 {[%clk 0:00:53]} 41. Ne5 {[%clk 0:01:10]}  R7xe5 {[%clk 0:00:47]} 42. dxe5 {[%clk 0:01:10]}  Nxf3+ {[%clk 0:00:38]} 43. Kf2 {[%clk 0:01:09]}  f4 {[%clk 0:00:35]} 44. Qg2 {[%clk 0:01:07]}  Nh4 {[%clk 0:00:33]} 45. Qh1 {[%clk 0:01:05]}  Re2+ {[%clk 0:00:30]} 46. Kg1 {[%clk 0:01:04]}  Qg4+ {[%clk 0:00:31]} 0-1


[Site "https://www.chess.com"]

[Event "Titled Tuesday Blitz January 04 2022"]
[White "Diaz Camallonga, Carles"]
[Black "Kalashian, David"]
[WhiteFideId "22235256"]
[BlackFideId "13302418"]
[WhiteElo "2438"]
[BlackElo "2490"]
[Result "0-1"]
[Round "07"]
[TimeControl "180+1"]
[Date "2022.01.04"]
[WhiteClock "0:00:03"]
[BlackClock "0:00:46"]

1. e4 {[%clk 0:03:00]}  c6 {[%clk 0:02:59]} 2. Nc3 {[%clk 0:03:00]}  g6 {[%clk 0:03:00]} 3. d4 {[%clk 0:02:59]}  Bg7 {[%clk 0:03:01]} 4. Nf3 {[%clk 0:02:58]}  d6 {[%clk 0:03:01]} 5. h3 {[%clk 0:02:58]}  Nf6 {[%clk 0:03:01]} 6. a4 {[%clk 0:02:58]}  O-O {[%clk 0:03:02]} 7. Be3 {[%clk 0:02:56]}  Nbd7 {[%clk 0:03:02]} 8. Be2 {[%clk 0:02:55]}  e5 {[%clk 0:03:03]} 9. dxe5 {[%clk 0:02:55]}  dxe5 {[%clk 0:03:04]} 10. O-O {[%clk 0:02:55]}  Qe7 {[%clk 0:03:03]} 11. Bc4 {[%clk 0:02:51]}  Nc5 {[%clk 0:03:02]} 12. Nd2 {[%clk 0:02:44]}  Rd8 {[%clk 0:03:00]} 13. Qb1 {[%clk 0:02:43]}  Nh5 {[%clk 0:02:56]} 14. Qa2 {[%clk 0:02:41]}  Ne6 {[%clk 0:02:54]} 15. Rad1 {[%clk 0:02:24]}  Nd4 {[%clk 0:02:51]} 16. Nb3 {[%clk 0:02:02]}  Be6 {[%clk 0:02:38]} 17. Bxe6 {[%clk 0:01:53]}  Qxe6 {[%clk 0:02:33]} 18. Rd2 {[%clk 0:01:38]}  Rd6 {[%clk 0:02:17]} 19. Rfd1 {[%clk 0:01:30]}  Rad8 {[%clk 0:02:16]} 20. Nc5 {[%clk 0:00:36]}  Qe7 {[%clk 0:02:07]} 21. b4 {[%clk 0:00:27]}  Nf4 {[%clk 0:02:01]} 22. Bxd4 {[%clk 0:00:15]}  Rxd4 {[%clk 0:01:50]} 23. Rxd4 {[%clk 0:00:08]}  exd4 {[%clk 0:01:50]} 24. Nb1 {[%clk 0:00:08]}  Qg5 {[%clk 0:01:26]} 25. g3 {[%clk 0:00:07]}  Nxh3+ {[%clk 0:01:24]} 26. Kg2 {[%clk 0:00:06]}  Nf4+ {[%clk 0:01:20]} 27. Kg1 {[%clk 0:00:05]}  Qg4 {[%clk 0:00:53]} 28. Re1 {[%clk 0:00:03]}  Nh3+ {[%clk 0:00:47]} 29. Kg2 {[%clk 0:00:03]}  Ng5 {[%clk 0:00:46]} 0-1


[Site "https://www.chess.com"]

[Event "Titled Tuesday Blitz January 04 2022"]
[White "Drozdowski, Kacper"]
[Black "Tristan, Leonardo"]
[WhiteFideId "1136720"]
[BlackFideId "113816"]
[WhiteElo "2507"]
[BlackElo "2404"]
[Result "0-1"]
[Round "07"]
[TimeControl "180+1"]
[Date "2022.01.04"]
[WhiteClock "0:01:04"]
[BlackClock "0:01:23"]

1. e4 {[%clk 0:03:00]}  d5 {[%clk 0:03:00]} 2. exd5 {[%clk 0:03:01]}  Qxd5 {[%clk 0:03:01]} 3. Nc3 {[%clk 0:02:59]}  Qa5 {[%clk 0:03:01]} 4. d4 {[%clk 0:02:59]}  Nf6 {[%clk 0:03:01]} 5. Bc4 {[%clk 0:02:59]}  Bg4 {[%clk 0:03:01]} 6. Ne2 {[%clk 0:02:59]}  Nc6 {[%clk 0:03:00]} 7. h3 {[%clk 0:02:52]}  Bf5 {[%clk 0:02:56]} 8. Be3 {[%clk 0:02:48]}  O-O-O {[%clk 0:02:56]} 9. O-O {[%clk 0:02:44]}  e5 {[%clk 0:02:54]} 10. d5 {[%clk 0:02:39]}  Nb4 {[%clk 0:02:53]} 11. Ng3 {[%clk 0:02:31]}  Bg6 {[%clk 0:02:45]} 12. Bd2 {[%clk 0:02:18]}  Qc5 {[%clk 0:02:39]} 13. Bb3 {[%clk 0:02:17]}  Nbxd5 {[%clk 0:02:38]} 14. Nxd5 {[%clk 0:02:13]}  Nxd5 {[%clk 0:02:37]} 15. Qg4+ {[%clk 0:02:13]}  Kb8 {[%clk 0:02:36]} 16. Rad1 {[%clk 0:02:09]}  Be7 {[%clk 0:02:10]} 17. Rfe1 {[%clk 0:01:51]}  h5 {[%clk 0:01:59]} 18. Qa4 {[%clk 0:01:48]}  Nb6 {[%clk 0:01:50]} 19. Qa5 {[%clk 0:01:45]}  Qxa5 {[%clk 0:01:47]} 20. Bxa5 {[%clk 0:01:46]}  f6 {[%clk 0:01:48]} 21. Kf1 {[%clk 0:01:38]}  h4 {[%clk 0:01:47]} 22. Ne2 {[%clk 0:01:36]}  Bf5 {[%clk 0:01:45]} 23. f4 {[%clk 0:01:32]}  Bd6 {[%clk 0:01:40]} 24. fxe5 {[%clk 0:01:23]}  Bxe5 {[%clk 0:01:41]} 25. Bc3 {[%clk 0:01:17]}  Rxd1 {[%clk 0:01:31]} 26. Rxd1 {[%clk 0:01:17]}  Bxc3 {[%clk 0:01:31]} 27. Nxc3 {[%clk 0:01:17]}  Re8 {[%clk 0:01:25]} 28. Kf2 {[%clk 0:01:14]}  c6 {[%clk 0:01:25]} 29. Rd4 {[%clk 0:01:11]}  g5 {[%clk 0:01:24]} 30. Rd6 {[%clk 0:01:10]}  Nd7 {[%clk 0:01:25]} 31. Ne2 {[%clk 0:01:05]}  Kc7 {[%clk 0:01:25]} 32. Rd2 {[%clk 0:01:05]}  Nc5 {[%clk 0:01:23]} 33. Nd4 {[%clk 0:01:04]}  Ne4+ {[%clk 0:01:23]} 0-1


[Site "https://www.chess.com"]

[Event "Titled Tuesday Blitz January 04 2022"]
[White "Gelman, Alexander"]
[Black "Pichot, Alan"]
[WhiteFideId "4118316"]
[BlackFideId "110973"]
[WhiteElo "2375"]
[BlackElo "2543"]
[Result "0-1"]
[Round "07"]
[TimeControl "180+1"]
[Date "2022.01.04"]
[WhiteClock "0:00:05"]
[BlackClock "0:00:14"]

1. d4 {[%clk 0:03:00]}  Nf6 {[%clk 0:02:57]} 2. Nc3 {[%clk 0:03:01]}  e6 {[%clk 0:02:58]} 3. e4 {[%clk 0:03:00]}  d5 {[%clk 0:02:58]} 4. e5 {[%clk 0:03:01]}  Nfd7 {[%clk 0:02:59]} 5. Nce2 {[%clk 0:03:02]}  c5 {[%clk 0:02:59]} 6. c3 {[%clk 0:03:02]}  Nc6 {[%clk 0:03:00]} 7. f4 {[%clk 0:03:03]}  a5 {[%clk 0:03:00]} 8. Nf3 {[%clk 0:02:58]}  a4 {[%clk 0:03:00]} 9. g4 {[%clk 0:02:51]}  h5 {[%clk 0:02:45]} 10. gxh5 {[%clk 0:02:50]}  b5 {[%clk 0:02:45]} 11. f5 {[%clk 0:02:42]}  cxd4 {[%clk 0:02:29]} 12. cxd4 {[%clk 0:02:33]}  exf5 {[%clk 0:02:16]} 13. Nf4 {[%clk 0:02:29]}  Bb7 {[%clk 0:02:02]} 14. Bd3 {[%clk 0:02:22]}  a3 {[%clk 0:01:13]} 15. bxa3 {[%clk 0:02:06]}  Bxa3 {[%clk 0:01:12]} 16. Bxf5 {[%clk 0:02:02]}  Bxc1 {[%clk 0:01:10]} 17. Qxc1 {[%clk 0:01:40]}  Qa5+ {[%clk 0:01:09]} 18. Kf2 {[%clk 0:01:38]}  Qa3 {[%clk 0:00:59]} 19. Qd2 {[%clk 0:01:24]}  Nb6 {[%clk 0:00:57]} 20. e6 {[%clk 0:01:20]}  Nc4 {[%clk 0:00:55]} 21. Qe2 {[%clk 0:01:19]}  f6 {[%clk 0:00:44]} 22. Rhg1 {[%clk 0:01:01]}  Qd6 {[%clk 0:00:44]} 23. Rxg7 {[%clk 0:00:42]}  Qxf4 {[%clk 0:00:41]} 24. Rxb7 {[%clk 0:00:43]}  Qxf5 {[%clk 0:00:29]} 25. Kg2 {[%clk 0:00:29]}  Qg4+ {[%clk 0:00:25]} 26. Kh1 {[%clk 0:00:30]}  Qe4 {[%clk 0:00:20]} 27. Qxe4 {[%clk 0:00:13]}  dxe4 {[%clk 0:00:19]} 28. Nh4 {[%clk 0:00:13]}  Rxh5 {[%clk 0:00:17]} 29. Ng6 {[%clk 0:00:11]}  O-O-O {[%clk 0:00:15]} 30. e7 {[%clk 0:00:05]}  Kxb7 {[%clk 0:00:14]} 0-1


[Site "https://www.chess.com"]

[Event "Titled Tuesday Blitz January 04 2022"]
[White "Hakobyan, Aram"]
[Black "Aloma Vidal, Robert"]
[WhiteFideId "13306677"]
[BlackFideId "2260409"]
[WhiteElo "2557"]
[BlackElo "2435"]
[Result "1-0"]
[Round "07"]
[TimeControl "180+1"]
[Date "2022.01.04"]
[WhiteClock "0:01:14"]
[BlackClock "0:00:14"]

1. d4 {[%clk 0:03:00]}  d5 {[%clk 0:02:58]} 2. Nf3 {[%clk 0:03:00]}  Bf5 {[%clk 0:02:57]} 3. c3 {[%clk 0:03:00]}  c6 {[%clk 0:02:53]} 4. Bf4 {[%clk 0:02:55]}  Nd7 {[%clk 0:02:50]} 5. Qb3 {[%clk 0:02:54]}  Qb6 {[%clk 0:02:49]} 6. e3 {[%clk 0:02:53]}  h6 {[%clk 0:02:42]} 7. c4 {[%clk 0:02:53]}  e6 {[%clk 0:02:41]} 8. Nc3 {[%clk 0:02:52]}  Ngf6 {[%clk 0:02:39]} 9. c5 {[%clk 0:02:51]}  Qxb3 {[%clk 0:02:38]} 10. axb3 {[%clk 0:02:52]}  a6 {[%clk 0:02:38]} 11. b4 {[%clk 0:02:53]}  Rc8 {[%clk 0:02:38]} 12. h3 {[%clk 0:02:50]}  g5 {[%clk 0:02:24]} 13. Bh2 {[%clk 0:02:49]}  Bg7 {[%clk 0:02:25]} 14. Nd2 {[%clk 0:02:45]}  O-O {[%clk 0:02:01]} 15. Nb3 {[%clk 0:02:45]}  e5 {[%clk 0:02:01]} 16. dxe5 {[%clk 0:02:20]}  Ne4 {[%clk 0:02:00]} 17. Nd4 {[%clk 0:02:09]}  Bg6 {[%clk 0:01:42]} 18. f4 {[%clk 0:01:58]}  Rce8 {[%clk 0:01:25]} 19. Be2 {[%clk 0:01:47]}  Nxc3 {[%clk 0:00:43]} 20. bxc3 {[%clk 0:01:46]}  Be4 {[%clk 0:00:43]} 21. O-O {[%clk 0:01:44]}  Re7 {[%clk 0:00:37]} 22. Bg4 {[%clk 0:01:40]}  f5 {[%clk 0:00:32]} 23. Be2 {[%clk 0:01:33]}  gxf4 {[%clk 0:00:27]} 24. exf4 {[%clk 0:01:33]}  Kh7 {[%clk 0:00:24]} 25. Bf3 {[%clk 0:01:29]}  h5 {[%clk 0:00:17]} 26. Bxh5 {[%clk 0:01:29]}  Bh6 {[%clk 0:00:17]} 27. Bf3 {[%clk 0:01:23]}  Rg7 {[%clk 0:00:16]} 28. Ne6 {[%clk 0:01:23]}  Rxg2+ {[%clk 0:00:13]} 29. Bxg2 {[%clk 0:01:21]}  Rg8 {[%clk 0:00:14]} 30. Rf2 {[%clk 0:01:14]} 1-0


[Site "https://www.chess.com"]

[Event "Titled Tuesday Blitz January 04 2022"]
[White "Liyanage, Ranindu Dilshan"]
[Black "Onyshchuk, Volodymyr"]
[WhiteFideId "9915834"]
[BlackFideId "14114038"]
[WhiteElo "1858"]
[BlackElo "2642"]
[Result "0-1"]
[Round "07"]
[TimeControl "180+1"]
[Date "2022.01.04"]
[WhiteClock "0:00:05"]
[BlackClock "0:00:12"]

1. e4 {[%clk 0:03:00]}  g6 {[%clk 0:03:00]} 2. d4 {[%clk 0:03:00]}  Bg7 {[%clk 0:03:01]} 3. Nc3 {[%clk 0:03:01]}  d6 {[%clk 0:03:01]} 4. f4 {[%clk 0:03:01]}  b6 {[%clk 0:02:58]} 5. Nf3 {[%clk 0:03:01]}  Bb7 {[%clk 0:02:58]} 6. Bd3 {[%clk 0:03:01]}  e6 {[%clk 0:02:56]} 7. Be3 {[%clk 0:02:55]}  Ne7 {[%clk 0:02:56]} 8. e5 {[%clk 0:02:52]}  Nd7 {[%clk 0:02:49]} 9. Qe2 {[%clk 0:02:48]}  a6 {[%clk 0:02:48]} 10. Bf2 {[%clk 0:02:48]}  b5 {[%clk 0:02:42]} 11. Ne4 {[%clk 0:02:46]}  Nd5 {[%clk 0:02:21]} 12. g3 {[%clk 0:02:19]}  Nb4 {[%clk 0:02:20]} 13. exd6 {[%clk 0:02:14]}  Nxd3+ {[%clk 0:02:19]} 14. Qxd3 {[%clk 0:02:15]}  O-O {[%clk 0:02:18]} 15. dxc7 {[%clk 0:02:04]}  Qxc7 {[%clk 0:02:18]} 16. O-O-O {[%clk 0:01:59]}  Rfd8 {[%clk 0:02:13]} 17. Kb1 {[%clk 0:01:55]}  Rac8 {[%clk 0:02:12]} 18. Qe2 {[%clk 0:01:51]}  Nb6 {[%clk 0:02:10]} 19. Nc5 {[%clk 0:01:47]}  Bd5 {[%clk 0:02:09]} 20. Rhe1 {[%clk 0:01:44]}  Nc4 {[%clk 0:02:03]} 21. Ne5 {[%clk 0:01:42]}  Qa5 {[%clk 0:01:51]} 22. Nb3 {[%clk 0:01:34]}  Qb6 {[%clk 0:01:49]} 23. Nc5 {[%clk 0:01:34]}  a5 {[%clk 0:01:48]} 24. h4 {[%clk 0:01:31]}  a4 {[%clk 0:01:45]} 25. h5 {[%clk 0:01:22]}  Qa5 {[%clk 0:01:44]} 26. hxg6 {[%clk 0:01:17]}  hxg6 {[%clk 0:01:43]} 27. Ned3 {[%clk 0:01:10]}  a3 {[%clk 0:01:30]} 28. b3 {[%clk 0:01:09]}  Qc3 {[%clk 0:01:23]} 29. bxc4 {[%clk 0:00:57]}  bxc4 {[%clk 0:01:21]} 30. Qd2 {[%clk 0:00:57]}  Bxd4 {[%clk 0:01:03]} 31. Bxd4 {[%clk 0:00:19]}  Qxd4 {[%clk 0:01:02]} 32. Qe3 {[%clk 0:00:17]}  Qxe3 {[%clk 0:00:20]} 33. Rxe3 {[%clk 0:00:18]}  cxd3 {[%clk 0:00:20]} 34. Nxd3 {[%clk 0:00:17]}  Rc3 {[%clk 0:00:21]} 35. Re2 {[%clk 0:00:12]}  Rb8+ {[%clk 0:00:20]} 36. Ka1 {[%clk 0:00:13]}  Bc4 {[%clk 0:00:20]} 37. Rf2 {[%clk 0:00:12]}  Kg7 {[%clk 0:00:19]} 38. Rfd2 {[%clk 0:00:07]}  Rc8 {[%clk 0:00:13]} 39. Kb1 {[%clk 0:00:06]}  Bd5 {[%clk 0:00:14]} 40. Re1 {[%clk 0:00:04]}  Rb8+ {[%clk 0:00:13]} 41. Ka1 {[%clk 0:00:04]}  Bc4 {[%clk 0:00:14]} 42. Red1 {[%clk 0:00:04]}  Bxd3 {[%clk 0:00:13]} 43. cxd3 {[%clk 0:00:05]}  Rbc8 {[%clk 0:00:13]} 44. Kb1 {[%clk 0:00:04]}  Kf6 {[%clk 0:00:13]} 45. Re1 {[%clk 0:00:04]}  Kf5 {[%clk 0:00:13]} 46. Rg1 {[%clk 0:00:02]}  Kg4 {[%clk 0:00:13]} 47. d4 {[%clk 0:00:02]}  Rxg3 {[%clk 0:00:12]} 48. Rxg3+ {[%clk 0:00:02]}  Kxg3 {[%clk 0:00:12]} 49. Rd3+ {[%clk 0:00:03]}  Kxf4 {[%clk 0:00:13]} 50. Rxa3 {[%clk 0:00:04]}  g5 {[%clk 0:00:13]} 51. Rc3 {[%clk 0:00:05]}  Rxc3 {[%clk 0:00:12]} 0-1


[Site "https://www.chess.com"]

[Event "Titled Tuesday Blitz January 04 2022"]
[White "Maghsoodloo, Parham"]
[Black "Kosakowski, Jakub"]
[WhiteFideId "12539929"]
[BlackFideId "1185080"]
[WhiteElo "2630"]
[BlackElo "2476"]
[Result "1-0"]
[Round "07"]
[TimeControl "180+1"]
[Date "2022.01.04"]
[WhiteClock "0:00:09"]
[BlackClock "0:00:09"]

1. e4 {[%clk 0:03:00]}  e5 {[%clk 0:02:56]} 2. Nf3 {[%clk 0:03:00]}  Nc6 {[%clk 0:02:56]} 3. Bb5 {[%clk 0:03:01]}  a6 {[%clk 0:02:56]} 4. Ba4 {[%clk 0:03:01]}  Nf6 {[%clk 0:02:56]} 5. O-O {[%clk 0:03:01]}  Be7 {[%clk 0:02:56]} 6. Re1 {[%clk 0:03:01]}  b5 {[%clk 0:02:56]} 7. Bb3 {[%clk 0:03:02]}  O-O {[%clk 0:02:56]} 8. h3 {[%clk 0:03:01]}  d6 {[%clk 0:02:51]} 9. a4 {[%clk 0:02:59]}  Rb8 {[%clk 0:02:47]} 10. d3 {[%clk 0:02:58]}  h6 {[%clk 0:02:45]} 11. Nc3 {[%clk 0:02:57]}  Be6 {[%clk 0:02:40]} 12. axb5 {[%clk 0:02:56]}  axb5 {[%clk 0:02:40]} 13. Nd5 {[%clk 0:02:56]}  Qd7 {[%clk 0:02:36]} 14. Bd2 {[%clk 0:02:51]}  Bd8 {[%clk 0:02:33]} 15. c4 {[%clk 0:02:34]}  bxc4 {[%clk 0:02:30]} 16. dxc4 {[%clk 0:02:34]}  Nh7 {[%clk 0:02:18]} 17. Ba4 {[%clk 0:02:20]}  Qe8 {[%clk 0:02:06]} 18. b4 {[%clk 0:02:16]}  Bd7 {[%clk 0:02:04]} 19. Bc3 {[%clk 0:02:09]}  Ne7 {[%clk 0:01:39]} 20. Bxd7 {[%clk 0:02:08]}  Qxd7 {[%clk 0:01:39]} 21. b5 {[%clk 0:02:07]}  c6 {[%clk 0:01:11]} 22. Nxe7+ {[%clk 0:02:05]}  Qxe7 {[%clk 0:01:12]} 23. bxc6 {[%clk 0:02:05]}  Rb6 {[%clk 0:01:12]} 24. c5 {[%clk 0:01:51]}  Rxc6 {[%clk 0:01:07]} 25. cxd6 {[%clk 0:01:52]}  Rxd6 {[%clk 0:01:07]} 26. Qb3 {[%clk 0:01:47]}  Rd3 {[%clk 0:00:58]} 27. Re3 {[%clk 0:01:28]}  Rxe3 {[%clk 0:00:55]} 28. fxe3 {[%clk 0:01:29]}  Ng5 {[%clk 0:00:55]} 29. Nxe5 {[%clk 0:01:25]}  Nxe4 {[%clk 0:00:54]} 30. Bd4 {[%clk 0:01:09]}  Qh4 {[%clk 0:00:41]} 31. Qc2 {[%clk 0:00:56]}  Ng5 {[%clk 0:00:33]} 32. Nd7 {[%clk 0:00:42]}  Re8 {[%clk 0:00:31]} 33. Ra8 {[%clk 0:00:38]}  Qg3 {[%clk 0:00:29]} 34. Kf1 {[%clk 0:00:37]}  Nxh3 {[%clk 0:00:24]} 35. Qf5 {[%clk 0:00:10]}  Ng5 {[%clk 0:00:18]} 36. Bb6 {[%clk 0:00:11]}  Ne6 {[%clk 0:00:15]} 37. Ne5 {[%clk 0:00:09]}  Qh4 {[%clk 0:00:10]} 38. Qxf7+ {[%clk 0:00:08]}  Kh7 {[%clk 0:00:09]} 39. Qg6+ {[%clk 0:00:09]} 1-0


[Site "https://www.chess.com"]

[Event "Titled Tuesday Blitz January 04 2022"]
[White "Moskalenko, Alexander"]
[Black "Godzwon, Iwo"]
[WhiteFideId "4155351"]
[BlackFideId "21802483"]
[WhiteElo "2515"]
[BlackElo "2201"]
[Result "1-0"]
[Round "07"]
[TimeControl "180+1"]
[Date "2022.01.04"]
[WhiteClock "0:00:45"]
[BlackClock "0:00:02"]

1. e4 {[%clk 0:03:00]}  c5 {[%clk 0:02:59]} 2. Nf3 {[%clk 0:02:59]}  e6 {[%clk 0:03:00]} 3. g3 {[%clk 0:02:57]}  Nc6 {[%clk 0:02:59]} 4. Bg2 {[%clk 0:02:57]}  e5 {[%clk 0:02:48]} 5. O-O {[%clk 0:02:56]}  g6 {[%clk 0:02:46]} 6. a3 {[%clk 0:02:45]}  Bg7 {[%clk 0:02:44]} 7. b4 {[%clk 0:02:46]}  d6 {[%clk 0:02:36]} 8. bxc5 {[%clk 0:02:34]}  dxc5 {[%clk 0:02:36]} 9. c4 {[%clk 0:02:35]}  Nge7 {[%clk 0:02:31]} 10. Nc3 {[%clk 0:02:33]}  Bg4 {[%clk 0:02:30]} 11. h3 {[%clk 0:02:29]}  Bxf3 {[%clk 0:02:29]} 12. Qxf3 {[%clk 0:02:30]}  Nd4 {[%clk 0:02:28]} 13. Qd1 {[%clk 0:02:30]}  O-O {[%clk 0:02:28]} 14. d3 {[%clk 0:02:29]}  Qd7 {[%clk 0:02:24]} 15. Nd5 {[%clk 0:02:24]}  Nxd5 {[%clk 0:02:14]} 16. cxd5 {[%clk 0:02:25]}  b5 {[%clk 0:02:14]} 17. Be3 {[%clk 0:02:17]}  Rfc8 {[%clk 0:02:08]} 18. h4 {[%clk 0:02:12]}  a5 {[%clk 0:01:54]} 19. Kh2 {[%clk 0:02:09]}  Qd6 {[%clk 0:01:54]} 20. a4 {[%clk 0:02:03]}  Rab8 {[%clk 0:00:36]} 21. axb5 {[%clk 0:02:03]}  Rxb5 {[%clk 0:00:36]} 22. Qa4 {[%clk 0:02:00]}  Rcb8 {[%clk 0:00:35]} 23. Ra2 {[%clk 0:02:00]}  Bf8 {[%clk 0:00:31]} 24. f4 {[%clk 0:01:54]}  Bg7 {[%clk 0:00:29]} 25. fxe5 {[%clk 0:01:47]}  Bxe5 {[%clk 0:00:29]} 26. Bf4 {[%clk 0:01:47]}  f6 {[%clk 0:00:26]} 27. Bxe5 {[%clk 0:01:45]}  Qxe5 {[%clk 0:00:27]} 28. Raf2 {[%clk 0:01:44]}  f5 {[%clk 0:00:22]} 29. Rf4 {[%clk 0:01:36]}  Ne2 {[%clk 0:00:19]} 30. Qc4 {[%clk 0:01:02]}  Nxf4 {[%clk 0:00:18]} 31. gxf4 {[%clk 0:01:03]}  Qd4 {[%clk 0:00:14]} 32. e5 {[%clk 0:01:03]}  Qxc4 {[%clk 0:00:11]} 33. dxc4 {[%clk 0:01:04]}  Rb2 {[%clk 0:00:12]} 34. d6 {[%clk 0:01:00]}  Kf7 {[%clk 0:00:11]} 35. Kg3 {[%clk 0:00:59]}  R8b3+ {[%clk 0:00:11]} 36. Bf3 {[%clk 0:00:55]}  a4 {[%clk 0:00:11]} 37. h5 {[%clk 0:00:55]}  a3 {[%clk 0:00:11]} 38. hxg6+ {[%clk 0:00:55]}  hxg6 {[%clk 0:00:11]} 39. Rh1 {[%clk 0:00:56]}  a2 {[%clk 0:00:11]} 40. Rh7+ {[%clk 0:00:56]}  Kg8 {[%clk 0:00:11]} 41. Ra7 {[%clk 0:00:56]}  Rd2 {[%clk 0:00:10]} 42. Kh4 {[%clk 0:00:49]}  Rxf3 {[%clk 0:00:10]} 43. Kg5 {[%clk 0:00:50]}  Kh8 {[%clk 0:00:03]} 44. Kh6 {[%clk 0:00:45]}  Rh3+ {[%clk 0:00:03]} 45. Kxg6 {[%clk 0:00:45]}  Rh1 {[%clk 0:00:02]} 46. Ra8# {[%clk 0:00:45]} 1-0


[Site "https://www.chess.com"]